Cogmind - Beta 15 @@@ ROGUE MODE // 2025.10.19 @ 22:49:54 Player: welikiq Result: Self-destructed Performance ------------- Evolutions (2) 1000 Regions Visited (3) 600 Robots Destroyed (13) 65 Value Destroyed (275) 275 Prototype IDs (0) 0 Alien Tech Used (0) 0 Bonus (0) 0 TOTAL SCORE: 1940 Bonus ------- None Cogmind --------- Core Integrity 466/550 Matter 247/300 Energy 100/100 System Corruption 0% Temperature Cool (9) Movement Core (100) Ox1 Location -8/Materials Parts ------- > --- POWER (2) -------- (None) > --- PROPULSION (4) --- (None) > --- UTILITY (3) ------ Signal Interpreter Transmission Jammer > --- WEAPON (2) ------- Medium Laser Light Assault Rifle > --- INVENTORY (5) ---- Backup Plating I Hammer Peak State ------------ > --- POWER ------------ Ion Engine Light Nuclear Core > --- PROPULSION ------- Light Treads > --- UTILITY ---------- Signal Interpreter Transmission Jammer Light Armor Plating > --- WEAPON ----------- Medium Laser Light Assault Rifle > --- INVENTORY -------- Backup Plating I Hammer [Rating: 13] Favorites ----------- Power Ion Engine Engine Ion Engine Power Core Light Nuclear Core Propulsion Light Treads Treads Light Treads Utility Signal Interpreter Device Sensor Array Storage Small Storage Unit Processor Signal Interpreter Protection Backup Plating I Weapon Medium Laser Energy Gun Medium Laser Ballistic Gun Light Assault Rifle Ballistic Cannon Improved Light Cannon Impact Weapon Hammer Build | -11 -10 -9 -8 ------- Run | Yrd Mat Mat Mat Slots Evolved 4 | . . 2 2 Power 1 | . . . 1 Propulsion 2 | . . 1 1 Utility 1 | . . 1 . Weapon . | . . . . Parts Attached 14 | 6 3 2 3 Power 2 | 1 . . 1 Engine 1 | 1 . . . Core 1 | . . . 1 Reactor . | . . . . Propulsion 2 | 2 . . . Treads 2 | 2 . . . Leg . | . . . . Wheel . | . . . . Hover . | . . . . Flight . | . . . . Utility 6 | 1 2 1 2 Device 2 | . 1 . 1 Storage 1 | 1 . . . Processor 1 | . 1 . . Hackware . | . . . . Protection 2 | . . 1 1 Artifact . | . . . . Weapon 4 | 2 1 1 . Energy Gun 1 | 1 . . . Energy Cannon . | . . . . Ballistic Gun 1 | 1 . . . Ballistic Cannon 1 | . . 1 . Launcher . | . . . . Special Weapon . | . . . . Impact Weapon 1 | . 1 . . Slashing Weapon . | . . . . Piercing Weapon . | . . . . Special Melee Weapon . | . . . . Unidentified Prototypes . | . . . . Parts Lost 6 | . . . 6 Power 2 | . . . 2 Propulsion 2 | . . . 2 Utility 1 | . . . 1 Weapon 1 | . . . 1 Highest Loss Streak 5 | . . . 5 To Critical Strikes . | . . . . Average Backups 2 | . 1 2 3 Power . | . . . . Propulsion . | . . . . Utility . | . . . 1 Weapon 1 | . . 1 1 Tool/Special . | . . . . Unused Backups 1 | . . . 1 Power . | . . . . Propulsion . | . . . . Utility 1 | . . . 1 Weapon . | . . . . Tool/Special . | . . . . Average Slot Usage (%) 83 | . 97 87 66 Engine 11 | . 14 11 9 Treads 21 | . 28 22 15 Device 10 | . 5 11 13 Storage 2 | . 8 . . Processor 10 | . 10 11 9 Protection 5 | . 2 10 1 Energy Gun 10 | . 12 11 9 Ballistic Gun 4 | . 14 1 . Ballistic Cannon 6 | . . 9 8 Peak Build Rating 13 | 6 7 9 13 Average Rating 8 | 4 6 8 10 On Entrance 5 | . 6 7 9 Naked Turns . | . . . . Heaviest Build 17 | 13 14 13 17 Greatest Support 40 | 40 40 40 40 Greatest Overweight (x) 5 | . . . 5 Average Overweight (x) . | . . . . Largest Inventory Capacity 8 | 8 8 5 5 Average Capacity 5 | 6 6 5 5 Most Carried 4 | . 3 3 4 Average Carried 2 | . 1 2 3 Final Capacity 8 | 8 5 5 5 Final Carried 3 | . 2 3 2 Class Distribution -------------------- 100% | Mutant Dominant Class ---------------- Mutant | -10/Materials Mutant | -9/Materials Mutant | -8/Materials Resources | -11 -10 -9 -8 ----------- Run | Yrd Mat Mat Mat Matter Collected 429 | 165 15 106 143 Remotely . | . . . . Salvage Created 247 | . 15 95 137 Parts 11 | . . 4 7 Haulers Intercepted . | . . . . Recyclers Shooed . | . . . . Parts Field Recycled . | . . . . Retrieved Matter . | . . . . Parts Self-Destructed . | . . . . Prevented . | . . . . Kills | -11 -10 -9 -8 ------- Run | Yrd Mat Mat Mat Combat Hostiles Destroyed 10 | . . 4 6 Guns 4 | . . 3 1 Cannons 6 | . . 1 5 Classes Destroyed 5 | . 1 3 1 Worker 2 | . 1 . 1 Watcher 1 | . . 1 . Swarmer 6 | . . 3 3 Grunt 2 | . . . 2 Sentry 2 | . . 1 1 Best Kill Streak 3 | . 1 3 3 Combat Bots Only 3 | . . 3 3 Max Kills in Single Turn 1 | . 1 1 1 Gunslinging . | . . . . Exploded . | . . . . Melee . | . . . . Uniques/NPCs Destroyed . | . . . . Combat | -11 -10 -9 -8 -------- Run | Yrd Mat Mat Mat Hostile Shots Fired 83 | . . 31 52 Missed 23 | . . 7 16 Hits 60 | . . 24 36 Projectile 60 | . . 24 36 Critical Strikes 1 | . . . 1 Damage Taken 875 | . . 204 671 Core 127 | . . 43 84 Absorbed by Shields . | . . . . Regen/Repaired (Parts) 10 | . . . 10 Core Remaining (%) 96 | 100 100 89 . Volleys Fired 40 | . . 16 24 Largest 2 | . . 2 2 Hottest 83 | . . 83 83 Shots Fired 76 | . . 32 44 Gun 42 | . . 16 26 Cannon 34 | . . 16 18 Launcher . | . . . . Special . | . . . . Kinetic 36 | . . 16 20 Thermal 40 | . . 16 24 Explosive . | . . . . Electromagnetic . | . . . . Robot Hit Streak 15 | . . 4 15 Robot Miss Streak 10 | . . 10 3 Penetration Max . | . . . . Secondary Targets . | . . . . Shots Hit Robots 45 | . 1 11 33 Core Hits 19 | . . 7 12 Critical Kills . | . . . . Critical Parts Destroyed 1 | . 1 . . Critical Strikes 2 | . 1 . 1 Blast 1 | . . . 1 Smash 1 | . 1 . . Melee Attacks 2 | . 2 . . Impact 2 | . 2 . . Slashing . | . . . . Piercing . | . . . . Sneak Attacks 1 | . 1 . . Combat Hostiles . | . . . . Follow-up Attacks . | . . . . Damage Inflicted 843 | . 60 242 541 Guns 317 | . . 87 230 Cannons 466 | . . 155 311 Explosions . | . . . . Melee 60 | . 60 . . Ramming . | . . . . Kinetic 473 | . . 155 318 Thermal 310 | . . 87 223 Explosive . | . . . . Electromagnetic . | . . . . Impact 60 | . 60 . . Slashing . | . . . . Piercing . | . . . . Highest Corruption . | . . . . Average Corruption . | . . . . Corruption Purged . | . . . . Corruption Blocked . | . . . . Overload Shots . | . . . . Overflow Damage 60 | . 60 . . Projectiles . | . . . . Explosions . | . . . . Melee 60 | . 60 . . Knockbacks 4 | . . 2 2 Impact . | . . . . Kinetic 3 | . . 1 2 Secondary 1 | . . 1 . Self-Inflicted Damage . | . . . . Shots . | . . . . Rammed 2 | . . . 2 Targets Rammed 2 | . . . 2 Kicked . | . . . . Crushed . | . . . . Highest Temperature 85 | . . 85 66 Average Temperature 27 | . . 30 24 Received Heat Transfer 189 | . . 9 180 Siege Activations . | . . . . Martial Activations . | . . . . Shielding Activations . | . . . . Robots Disrupted . | . . . . Combat Hostiles . | . . . . Robots Corrupted . | . . . . Combat Hostiles . | . . . . Parts Fried 2 | . 2 . . Impact Corruptions 1 | . 1 . . Robots Melted . | . . . . Combat Hostiles . | . . . . Parts Melted 1 | . . . 1 Heat Transferred 925 | . . 259 666 Parts Sabotaged . | . . . . Parts Stolen . | . . . . Parts Stripped . | . . . . Power Chain Reactions . | . . . . Alert | -11 -10 -9 -8 ------- Run | Yrd Mat Mat Mat Maximum Alert Level . | . . . . Low Security (%) 100 | 100 100 100 100 Level 1 . | . . . . Level 2 . | . . . . Level 3 . | . . . . Level 4 . | . . . . Level 5 . | . . . . High Security . | . . . . Max Security . | . . . . Peak Influence 88 | . 20 83 88 Initial . | . . . . Average 17 | . 1 21 32 Influence Increases 364 | . 26 110 228 Destroy 0b10 Robot/C 200 | . . 80 120 Destroy 0b10 Robot/NC 15 | . 5 5 5 Destroy Leader 62 | . . 22 40 Successful Hack 9 | . 6 . 3 Disable Machine 15 | . 15 . . Destroy Structure 3 | . . 3 . Lose Combat Pursuer 60 | . . . 60 Influence Decreases 326 | . 26 110 190 Time Decay 266 | . 26 110 130 Lost Part 60 | . . . 60 Squads Dispatched 3 | . . . 3 Investigation 1 | . . . 1 Extermination . | . . . . Reinforcement 2 | . . . 2 Assault . | . . . . Garrison . | . . . . Intercept . | . . . . Searches Triggered . | . . . . Construction Impeded . | . . . . Haulers Reinforced . | . . . . Active Scanning Responses . | . . . . Cargo Convoy Interrupts . | . . . . Stealth | -11 -10 -9 -8 --------- Run | Yrd Mat Mat Mat Distress Signals 2 | . . 2 . Communications Jammed 1 | . . . 1 Distress Signals 1 | . . . 1 Times Spotted 24 | . . 9 15 Peak Tracking Total 5 | . . 4 5 Tactical Retreats 2 | . . . 2 Traps | -11 -10 -9 -8 ------- Run | Yrd Mat Mat Mat Traps Triggered 1 | . 1 . . Indirectly . | . . . . Trap Hack Attempts . | . . . . Triggered . | . . . . Disarmed . | . . . . Reprogrammed . | . . . . Reused . | . . . . Traps Extracted . | . . . . Installed . | . . . . Triggered . | . . . . Machines | -11 -10 -9 -8 ---------- Run | Yrd Mat Mat Mat Machines Disabled 1 | . 1 . . Max in Single Turn 1 | . 1 . . Machines Repaired . | . . . . Machines Dismantled . | . . . . Machines Sabotaged . | . . . . Overloaded Fab Kills . | . . . . Hacking | -11 -10 -9 -8 --------- Run | Yrd Mat Mat Mat Machines Accessed 3 | . 2 . 1 Terminals . | . . . . Fabricators . | . . . . Repair Stations 2 | . 1 . 1 Recycling Units 1 | . 1 . . Scanalyzers . | . . . . Garrison Access . | . . . . Total Hacks 7 | . 4 . 3 Successful 6 | . 3 . 3 Failed 1 | . 1 . . Catastrophic . | . . . . Database Lockouts . | . . . . Manual . | . . . . Terminals . | . . . . Fabricators . | . . . . Repair Stations 4 | . 1 . 3 Recycling Units 3 | . 3 . . Scanalyzers . | . . . . Garrison Access . | . . . . Terminal Hacks . | . . . . Fabricator Hacks . | . . . . Repair Station Hacks 4 | . 1 . 3 Scan Component 2 | . . . 2 Repair 1 | . . . 1 Refit 1 | . 1 . . Recycling Unit Hacks 2 | . 2 . . Report Inventory 1 | . 1 . . Retrieve Components 1 | . 1 . . Scanalyzer . | . . . . Garrison Access Hacks . | . . . . Unauthorized Hacks . | . . . . Terminals . | . . . . Fabricators . | . . . . Repair Stations . | . . . . Recycling Units . | . . . . Scanalyzers . | . . . . Garrison Access . | . . . . Data Cores Recovered . | . . . . Used . | . . . . Hacking Detections 1 | . . . 1 Full Trace Events 1 | . . . 1 Feedback Events . | . . . . Feedback Blocked . | . . . . Robot Schematics Acquired . | . . . . Robots Built . | . . . . Authchips . | . . . . Time . | . . . . Total Robot Build Rating . | . . . . Part Schematics Acquired . | . . . . Parts Built . | . . . . Authchips . | . . . . Time . | . . . . Total Part Build Rating . | . . . . Parts Repaired 1 | . . . 1 Time 26 | . . . 26 Parts Recycled . | . . . . Recycled Matter . | . . . . Retrieved Matter . | . . . . Retrieved Components 2 | . 2 . . Parts Scanalyzed . | . . . . Part Schematics Acquired . | . . . . Parts Damaged . | . . . . Bothacking | -11 -10 -9 -8 ------------ Run | Yrd Mat Mat Mat Used RIF Installer . | . . . . Robots Hacked . | . . . . Non-combat . | . . . . Combat . | . . . . Robot Hacks Applied . | . . . . Relay Couplers Released . | . . . . Fabnet Peak Effective % . | . . . . Robots Rewired . | . . . . Allies Hacked . | . . . . Hacks Repelled . | . . . . Allies | -11 -10 -9 -8 -------- Run | Yrd Mat Mat Mat Total Allies . | . . . . Largest Group . | . . . . Highest-Rated Group . | . . . . Highest-Rated Ally . | . . . . Total Orders . | . . . . Ally Attacks . | . . . . Total Damage . | . . . . Kills . | . . . . Allies Corrupted . | . . . . Allies Melted . | . . . . Intel | -11 -10 -9 -8 ------- Run | Yrd Mat Mat Mat Active Infowar (turns) 809 | . 94 407 308 Sensors 682 | . 94 407 181 Jamming 271 | . . . 271 Robot Analysis Total . | . . . . Derelict Logs Recovered . | . . . . Drone Launches . | . . . . Drone Recoveries . | . . . . Exploration | -11 -10 -9 -8 ------------- Run | Yrd Mat Mat Mat Turns Passed 1087 | 118 254 407 308 Spaces Moved 524 | 71 144 212 97 Core 4 | 3 . . 1 Treads 520 | 68 144 212 96 Legs . | . . . . Wheels . | . . . . Hover . | . . . . Flight . | . . . . Fastest Speed 50 | 50 160 160 160 Average Speed 159 | 155 160 160 161 Slowest Speed 300 | 160 160 160 300 Overloaded Moves . | . . . . Propulsion Burnouts . | . . . . Robots Hopped . | . . . . Potential Cave-ins . | . . . . Cave-ins Triggered . | . . . . Exploration Rate (%) 14 | 4 20 22 10 Regions Visited 3 Branch Regions . Pre-discovered Areas . | . . . . Known Exits Taken 2 | . 1 1 . Unknown Exits Taken 1 | 1 . . . Scrap Searched . | . . . . Spaces Dug . | . . . . Terrain Destroyed 3 | . . 3 . Melee . | . . . . Projectile 3 | . . 3 . AOE . | . . . . Terrain Rammed . | . . . . Walls Destroyed . | . . . . Machines Disabled . | . . . . Actions | -11 -10 -9 -8 --------- Run | Yrd Mat Mat Mat Total 688 | 76 162 247 203 Wait 96 | . 7 16 73 Move 521 | 70 143 211 97 Hop . | . . . . Pick Up 7 | . 3 2 2 Fast Attach 9 | 6 2 . 1 Attach 3 | . . 1 2 Detach . | . . . . Swap 6 | . 4 1 1 Drop 2 | . 1 . 1 Fire 40 | . . 16 24 Melee 2 | . 2 . . Ram . | . . . . Kick . | . . . . Crush 2 | . . . 2 Escape Stasis . | . . . . Rewire . | . . . . Trap . | . . . . Miscellaneous . | . . . . Route ------- -11/Scrapyard -10/Materials (discovered 2 exits: *Mat / *Sub) -9/Materials -8/Materials History --------- Turn | Location | Event 22 | -11/Scrapyard | Discovered new exit (range 15) 119 | -11/Scrapyard | Entered Materials 297 | -10/Materials | Discovered new exit (range 16) 306 | -10/Materials | Build established: Mutant 327 | -10/Materials | Identified exit to Materials 349 | -10/Materials | Discovered new exit (range 9) 362 | -10/Materials | Identified exit to Subcaves 373 | -10/Materials | Entered another Materials area 373 | -9/Materials | Evolved 2 slots: Propulsion x1, Utility x1 598 | -9/Materials | Met 8R-AWN 750 | -9/Materials | Discovered new exit (range 5) 759 | -9/Materials | Identified exit to Materials 780 | -9/Materials | Entered another Materials area 780 | -8/Materials | Evolved 2 slots: Power x1, Propulsion x1 987 | -8/Materials | Repaired Sensor Array 1088 | -8/Materials | Self-destructed Last Messages --------------- 01062_ K-01 Serf collects debris. 01064_ K-01 Serf destroyed. 01066_ K-01 Serf collects debris. 01070_ K-01 Serf cleans the Repair Station. 01073_ Imp. Heat Sink melted. 01073_ G-47 Trooper destroyed. 01074_ K-01 Serf collects debris. 01074_ ALERT: Suspicious intruders detected, dispatching Specialist reinforcements to area. 01077_ K-01 Serf cleans the Repair Station. 01077_ K-01 Serf collects debris. 01078_ Acquired Lgt. Nuclear Core. 01079_ Slammed into K-01 Serf. 01081_ Acquired 43 matter. 01081_ Penetrated by Slug. 01081_ Lgt. Treads destroyed. 01086_ Lgt. Armor Plating destroyed. 01086_ Lgt. Nuclear Core destroyed. 01086_ Critical hit (Blast). 01088_ Ion Engine destroyed. Map ----- +----------------------------------------------------+ | ?????????????????????????????????????????????????? | | ?????????????????????????????????????????????????? | | ?????????????????????????????????????????????????? | | ?????????????????????????????????????????????????? | | ?????????????????????????????????????????????????? | | ?????????????????????????????????????????????????? | | ?????????????????????????????????????????????????? | | ?????????????????????????????????????????????????? | | ?????????????????????????????????????????????????? | | ?????????????????????????????????????????????????? | | ?????????????????????????????????????????????????? | | ?????????????????????????????????????????????????? | | ?????????????????????????????????????????????????? | | ?????????????????????????????????????????????????? | | ?????????????????????????????????????????????????? | | ?????????????????????????????????????????????????? | | ?????????????????????????????????????????????????? | | ?????????????????????????????????????????????????? | | ?????????????????????????????????????????????????? | | ?????????????????????????????????????????????????? | | ??????????????????????#######????????????????????? | | ????????????## ???????#"""""#????????????????????? | | ????????????# #####""T""########### ????????? | | ????????????# ""g g k u ???????? | | ????????????+ T g % % % k H???????? | | ????????????# @ % g k ???????? | | ????????????# ########+########??????????????? | | ??????????????????????# % %=#???????? ??????? | | ??????????????????????# """ #???????# #?????? | | ??????????????????????# !R" #???????# #?????? | | ??????????????????????# """ #???????+ #?????? | | ??????????????????????# #???????# #?????? | | ??????????????????????# " """ #???????# #?????? | | ??????????????????????# """"" #???????# #?????? | | ??????????????????????# """"" #???????# #?????? | | ??????????????????????# #???????# #?????? | | ??????????????????????########+#???????# #?????? | | ?????????????????????????????# #???????# +?????? | | ?????????????????????????????# #???????# #?????? | | ???????????????????????????### ###?????# ####### | | ???????????????????????????# ####### # !! | | ???????????????????????????# # != | | ???????????????????????????# # ! | | ???????????????????????????# # | | ???????????????????????????# ####### + | | ???????????????????????????#######?????# # | | ???????????????????????????????????????# ####### | | ???????????????????????????????????##### =#?????? | | ???????????????????????????????????#!!= [[ #?????? | | ???????????????????????????????????#! %= #?????? | +----------------------------------------------------+ Best States ------------- Heat Dissipation 31 Energy Generation 19 Energy Capacity 310 Matter Stores 217 Matter Capacity 300 Sight Range 16 Robot Scan Range 14 Terrain Scan Density 10 Jamming Range 12 Armor Coverage 150 Evasion (%) 40 Recoil Reduction 2 Item Schematics ----------------- None Robot Schematics ------------------ None Fabricated ------------ Nothing Repaired ---------- Sensor Array | 50% | -8/Materials Alien Tech Used ----------------- None Achievements -------------- None Challenges ------------ None Game ------ Seed MetaMolecularShovel Manual? 0 Play Time 00:10:30 Cumulative 7.7 hours Start 2025.10.17 @ 22:21:33 End 2025.10.19 @ 22:49:54 Sessions 2 Manual Loads 0 Difficulty Rogue Special Mode None Game No. 18 Rogue 18 Adventurer 0 Explorer 0 Win Type - Total 0 Types 0/0/0/0/0/0/0/0/0/0 Lore% 3 Gallery% 9 Achievement% 11 Wizard Run 0 Options --------- Layout 0 ASCII 0 Keyboard 0 Movement Arrows Keybinds 0 Fullscreen 1 Font 24/Smallcaps Map View 76x50 Zoom Use 72% Tactical HUD 1 Map Filters NONE Filters NONE Steam 1 RUN: 73aabaa1-b3a8-4e64-8ef9-9725be46765a